bitfinex-derivatives/quotes_BTCF0:USTF0_20251217
["timestamp","ask_amount","ask_price","bid_price","bid_amount"]
[1765979567335,0.69216148,87497.0,87496.0,0.33489]
[1765979568034,0.00017148,87497.0,87496.0,0.67154]
[1765979568235,0.69199,87489.0,87488.0,0.002]
[1765979568434,0.3608,87489.0,87488.0,0.67354]
[1765979568735,0.78197467,87497.0,87496.0,0.67154]
[1765979570134,0.78197467,87497.0,87490.0,0.88734]
[1765979570135,0.7034234,87491.0,87490.0,0.88734]
[1765979570331,1.0642234,87491.0,87490.0,0.88734]
[1765979571024,1.05279,87491.0,87490.0,0.67154]
[1765979571229,1.0642234,87491.0,87490.0,0.67154]
[1765979571427,1.0642234,87491.0,87490.0,0.88734]
[1765979572139,1.05279,87491.0,87490.0,0.88734]
[1765979572328,1.05279,87491.0,87490.0,0.88834]
[1765979572329,0.34968,87491.0,87490.0,0.88834]
[1765979572731,0.35068,87491.0,87490.0,0.88834]
[1765979573436,0.001,87491.0,87490.0,0.88734]
[1765979574234,0.00017148,87497.0,87496.0,0.6829727]
[1765979574439,0.00017148,87497.0,87496.0,1.7661327]
[1765979575636,0.00017148,87497.0,87496.0,1.7681327]
[1765979577038,0.3608,87511.0,87509.0,0.011431]
[1765979577337,0.103622,87520.0,87513.0,0.67154]
[1765979577338,0.69199,87514.0,87513.0,0.67154]
[1765979577533,1.05279,87519.0,87518.0,0.6829698]
[1765979577741,1.05279,87519.0,87518.0,0.67154]
[1765979578938,1.05479,87519.0,87518.0,0.67154]
[1765979579743,1.05579,87519.0,87518.0,0.67154]
[1765979580740,1.05579,87519.0,87517.0,0.0114299]
[1765979580741,0.69199,87518.0,87517.0,0.0114299]
[1765979581145,0.003,87519.0,87518.0,0.67154]
[1765979581340,0.002,87519.0,87518.0,0.67154]
[1765979581747,0.00017148,87527.0,87526.0,0.67154]
[1765979581938,0.69199,87511.0,87510.0,0.67171148]
[1765979582131,0.69199,87511.0,87510.0,0.00017148]
[1765979582336,0.69199,87517.0,87516.0,0.67154]
[1765979582541,0.34968,87521.0,87520.0,0.8987696]
[1765979583046,0.69216148,87527.0,87526.0,0.67154]
[1765979583235,0.70359018,87527.0,87526.0,0.67154]
[1765979583735,0.7034206,87512.0,87511.0,0.0114307]
[1765979584039,0.69199,87519.0,87518.0,0.67154]
[1765979584743,1.05279,87519.0,87518.0,0.67154]
[1765979585144,0.6715207,87511.0,87510.0,0.00017148]
[1765979585333,1.0323207,87511.0,87510.0,0.00017148]
[1765979587547,0.66009,87491.0,87490.0,0.86793]
[1765979589244,0.66009,87491.0,87490.0,0.32642]
[1765979589449,0.66149,87483.0,87482.0,0.70908588]
[1765979590036,0.66149,87483.0,87482.0,0.69765138]
[1765979590740,0.66149,87483.0,87482.0,0.70165138]
[1765979591141,0.66149,87483.0,87482.0,0.70365138]
[1765979593056,0.66149,87483.0,87482.0,0.00617138]
[1765979593438,0.0114369,87465.0,87464.0,0.3543369]
[1765979593650,0.6729269,87465.0,87464.0,0.69748]
[1765979594450,0.66149,87465.0,87464.0,0.69748]
[1765979594641,0.66166148,87473.0,87472.0,0.7089158]
[1765979596642,0.66166148,87473.0,87472.0,0.7159158]
[1765979597244,0.00017148,87473.0,87472.0,0.7159158]
[1765979597856,0.66166148,87473.0,87472.0,0.7159158]
[1765979598152,0.00017148,87473.0,87472.0,0.7159158]
[1765979598358,0.3608,87485.0,87484.0,0.7089143]
[1765979598545,0.6729206,87513.0,87512.0,0.3429]
[1765979598746,0.66149,87513.0,87512.0,0.69748]
[1765979598949,0.33733,87526.0,87525.0,0.69748]
[1765979599145,0.66149,87535.0,87534.0,0.7089077]
[1765979599342,0.67308798,87543.0,87542.0,0.69748]
[1765979599546,0.6729176,87535.0,87534.0,0.3608]
[1765979599746,0.87733,87527.0,87526.0,0.00017138]
[1765979599942,0.66149,87527.0,87526.0,0.69765138]
[1765979600248,0.66149,87527.0,87526.0,0.00017138]
[1765979600558,0.66149,87527.0,87526.0,0.69765138]
[1765979600751,0.33733,87532.0,87531.0,0.3543281]
[1765979601062,0.3487575,87536.0,87535.0,0.69748]
[1765979601248,0.66149,87527.0,87526.0,0.34407138]
[1765979601553,0.66149,87527.0,87526.0,0.00117138]
[1765979602348,0.66149,87527.0,87526.0,0.00017138]
[1765979602648,0.66249,87527.0,87526.0,0.00017138]
[1765979604452,0.001,87527.0,87526.0,1.05845138]
[1765979605449,0.66249,87527.0,87526.0,0.36097138]
[1765979609058,0.66249,87527.0,87526.0,1.38e-06]
[1765979609059,1.06249,87527.0,87526.0,1.38e-06]
[1765979609254,0.87716,87516.0,87515.0,0.3608]
[1765979609560,0.672922,87501.0,87500.0,0.3608]
[1765979610148,0.422922,87501.0,87500.0,0.3608]
[1765979611252,0.422922,87501.0,87500.0,0.3628]
[1765979612063,0.422922,87501.0,87500.0,0.002]
[1765979612756,0.422922,87501.0,87498.0,0.00228578]
[1765979612757,0.66149,87499.0,87498.0,0.00228578]
[1765979614554,0.66349,87499.0,87498.0,0.00228578]
[1765979615070,0.66449,87499.0,87498.0,0.00228578]
[1765979615754,0.34033,87499.0,87498.0,0.67404578]
[1765979616060,0.34033,87499.0,87492.0,0.00017138]
[1765979616061,0.6790931,87493.0,87492.0,0.00017138]
[1765979616558,0.0114347,87481.0,87461.0,0.20324]
[1765979616761,0.6790947,87481.0,87475.0,0.0114354]
[1765979617363,0.6790947,87481.0,87472.0,0.5399558]
[1765979617762,0.66766,87474.0,87473.0,1.03256]
[1765979618160,0.6790956,87474.0,87473.0,0.3608]
[1765979618362,0.6790956,87474.0,87473.0,1.03256]
[1765979618963,0.6790956,87474.0,87473.0,1.03356]
[1765979618964,0.3431156,87474.0,87473.0,1.03356]
[1765979619957,0.00017138,87489.0,87488.0,0.6831937]
[1765979620162,0.00017138,87489.0,87488.0,1.0439937]
[1765979620365,0.33185138,87489.0,87488.0,1.03256]
[1765979620558,0.66783138,87489.0,87488.0,1.03256]
[1765979621066,0.66883138,87489.0,87488.0,1.03256]
[1765979621255,0.00117138,87489.0,87488.0,1.03256]
[1765979621456,0.00217138,87489.0,87488.0,1.03256]
[1765979621654,0.66983138,87489.0,87488.0,1.03256]
[1765979621855,0.33385138,87489.0,87488.0,1.03256]
[1765979622155,0.00217138,87489.0,87488.0,1.03256]
[1765979622960,0.00199852,87489.0,87488.0,1.39336]
[1765979623267,0.002,87489.0,87488.0,1.39336]
[1765979625767,0.6810936,87489.0,87488.0,0.3608]
[1765979631669,0.0134336,87489.0,87488.0,1.03256]
[1765979632263,0.002,87489.0,87488.0,1.03256]
[1765979632463,0.01160408,87497.0,87496.0,0.67176]
[1765979632659,0.00017148,87497.0,87496.0,1.03256]
[1765979633773,0.00117148,87497.0,87496.0,1.03256]
[1765979635776,0.66883148,87497.0,87496.0,0.69058]
[1765979636177,0.00117148,87497.0,87496.0,1.0439927]
[1765979639067,0.01260408,87497.0,87496.0,1.0439927]
[1765979640276,0.00117148,87497.0,87496.0,1.0439927]
[1765979640477,0.05994289,87511.0,87510.0,0.88151]
[1765979640678,0.15195791,87520.0,87512.0,0.67176]
[1765979640870,0.86016661,87520.0,87519.0,0.6831897]
[1765979641069,0.7082087,87520.0,87519.0,0.67176]
[1765979641679,0.6790896,87520.0,87519.0,0.67176]
[1765979641894,0.6790896,87520.0,87518.0,0.3608]
[1765979642080,0.66766,87519.0,87518.0,0.3608]
[1765979642271,0.6790906,87512.0,87511.0,0.00017148]
[1765979642782,0.3431106,87512.0,87511.0,0.67193148]
[1765979643579,0.6790906,87512.0,87511.0,0.00017148]
[1765979644175,0.6820906,87512.0,87511.0,0.00017148]
[1765979644778,0.6820906,87512.0,87490.0,0.20975]
[1765979644779,0.6761534,87491.0,87490.0,0.33544]
[1765979644982,0.66472,87489.0,87488.0,0.3722337]
[1765979645171,0.0114307,87511.0,87510.0,0.67431]
[1765979645370,0.06457133,87512.0,87511.0,0.67431]
[1765979645371,0.003,87512.0,87511.0,0.67431]
[1765979645774,0.003,87512.0,87510.0,0.3722309]
[1765979645775,0.7046085,87529.0,87528.0,0.6857385]
[1765979646086,1.0369485,87529.0,87528.0,0.66203171]
[1765979646873,1.0409485,87529.0,87528.0,0.66203171]
[1765979647071,1.0409485,87529.0,87528.0,0.65060321]
[1765979647974,1.0409485,87529.0,87528.0,0.31173321]
[1765979649589,0.6926092,87523.0,87522.0,1.078]
[1765979650787,0.3503192,87523.0,87522.0,1.078]
[1765979650984,0.33889,87523.0,87522.0,1.078]
[1765979651777,0.33889,87531.0,87530.0,0.92989]
[1765979651989,0.33889,87531.0,87530.0,1.29069]
[1765979652287,0.68118,87531.0,87530.0,1.29069]
[1765979653286,0.68218,87531.0,87530.0,1.29069]
[1765979654586,0.001,87531.0,87530.0,1.29069]
[1765979654782,0.0009,87531.0,87530.0,1.29069]
[1765979656380,0.68208,87531.0,87530.0,1.29069]
[1765979656785,0.68208,87531.0,87530.0,1.078]
[1765979656978,0.68208,87531.0,87530.0,0.3608]
[1765979657684,0.68208,87531.0,87530.0,1.078]
[1765979657887,0.33979,87531.0,87530.0,1.078]
[1765979658191,0.0009,87531.0,87530.0,1.078]
[1765979658575,0.00017137,87537.0,87536.0,0.7286275]
[1765979660192,0.00117137,87537.0,87536.0,0.7286275]
[1765979660583,0.01259867,87537.0,87536.0,0.7286275]
[1765979661182,0.69377867,87537.0,87536.0,0.7286275]
[1765979661988,0.68235137,87537.0,87536.0,0.7286275]
[1765979662390,0.34006137,87537.0,87536.0,0.7286275]
[1765979663684,0.00117137,87537.0,87536.0,0.7286275]
[1765979663884,0.01259867,87537.0,87536.0,0.7286275]
[1765979664695,0.6926081,87531.0,87530.0,1.078]
[1765979665085,0.0114281,87531.0,87530.0,1.078]
[1765979665293,0.69377867,87537.0,87536.0,0.7172]
[1765979665798,0.69277867,87537.0,87536.0,0.7172]
[1765979666389,0.00017137,87537.0,87536.0,0.7172]
[1765979667896,0.011426,87547.0,87546.0,0.7172]
[1765979668097,0.011426,87547.0,87546.0,1.078]
[1765979668487,0.350316,87547.0,87546.0,1.078]
[1765979669091,0.0114256,87551.0,87550.0,0.0114254]
[1765979669296,0.0114256,87551.0,87550.0,0.7286254]
[1765979669792,0.6926066,87543.0,87542.0,0.71737137]
[1765979669984,0.0114266,87543.0,87542.0,0.71737137]
[1765979670384,0.3503166,87543.0,87542.0,0.71737137]
[1765979670586,0.6926066,87543.0,87542.0,0.71737137]
[1765979673903,0.6926066,87543.0,87542.0,0.72879807]
[1765979674504,0.0114266,87543.0,87542.0,0.72879807]
[1765979674802,0.07296432,87548.0,87547.0,0.699106]
[1765979674998,0.011426,87548.0,87547.0,0.699106]
[1765979676001,0.06153832,87549.0,87547.0,0.699106]
[1765979676201,0.06153832,87550.0,87549.0,0.68768]
[1765979676402,0.09181919,87551.0,87550.0,0.68768]
[1765979676604,0.0114255,87551.0,87550.0,0.68768]
[1765979676803,0.10329428,87551.0,87550.0,0.68768]
[1765979677000,0.3586155,87551.0,87550.0,0.68768]
[1765979677200,0.0114255,87551.0,87550.0,0.68768]
[1765979680193,0.07299407,87551.0,87550.0,0.68768]
[1765979680596,0.06156857,87551.0,87550.0,0.68768]
[1765979681397,0.01159647,87555.0,87548.0,0.3608]
[1765979681398,0.7157158,87549.0,87548.0,0.3608]
[1765979681596,0.7157158,87549.0,87543.0,0.89408]
[1765979681597,0.7157164,87544.0,87543.0,0.89408]
[1765979681802,0.70429,87543.0,87542.0,0.00017137]
[1765979682302,0.70429,87543.0,87542.0,0.68785137]
[1765979690406,0.0114264,87544.0,87543.0,0.6991066]
[1765979690903,0.40875857,87550.0,87549.0,0.68768]
[1765979691105,0.34719,87550.0,87549.0,0.68768]
[1765979691402,0.52037407,87551.0,87550.0,9.98339]
[1765979691610,0.16327407,87551.0,87550.0,9.98339]
[1765979692312,0.0114255,87551.0,87550.0,9.98339]
[1765979692810,0.10179277,87555.0,87554.0,0.6991051]
[1765979693113,0.0402242,87555.0,87554.0,0.6991051]
[1765979693911,0.01159647,87555.0,87554.0,0.6991051]
[1765979694118,0.00017137,87555.0,87554.0,0.6991051]
[1765979695714,0.01159637,87555.0,87554.0,0.6991051]
[1765979696415,0.19215637,87555.0,87554.0,0.68768]
[1765979697807,0.10187637,87555.0,87554.0,0.68768]
[1765979698007,0.19215637,87555.0,87554.0,0.68768]
[1765979698609,0.18056,87553.0,87552.0,0.2064]
[1765979699213,0.18056,87551.0,87550.0,9.29571]
[1765979699419,0.24220737,87551.0,87550.0,9.29571]
[1765979701717,0.0114254,87552.0,87551.0,0.68768]
[1765979702114,0.1919854,87552.0,87551.0,0.68768]
[1765979702312,0.25363277,87552.0,87551.0,0.68768]
[1765979702706,0.07307277,87552.0,87551.0,0.68768]
[1765979702912,0.1919854,87552.0,87551.0,0.68768]
[1765979703112,0.18056,87551.0,87550.0,9.29571]
[1765979705209,0.26048386,87551.0,87550.0,9.29571]
[1765979705408,0.18056,87551.0,87550.0,9.29571]
[1765979706124,0.1919866,87543.0,87538.0,0.00228474]
[1765979706419,1.2738266,87543.0,87538.0,0.00228474]
[1765979708023,1.2738266,87543.0,87542.0,0.33155137]
[1765979708326,1.2738266,87543.0,87542.0,0.00017137]
[1765979708720,1.0932666,87543.0,87542.0,0.69411137]
[1765979708928,0.0114266,87543.0,87542.0,0.69411137]
[1765979709116,0.06162415,87552.0,87551.0,0.69394]
[1765979709432,0.0114254,87552.0,87551.0,0.7053654]
[1765979710728,0.0114254,87552.0,87549.0,0.3608]
[1765979710729,0.01159647,87555.0,87554.0,0.7053651]
[1765979711029,0.00017137,87555.0,87554.0,0.7053651]
[1765979711225,1.37e-06,87555.0,87554.0,0.7053651]
[1765979711420,0.0114238,87565.0,87564.0,0.69394]
[1765979711725,0.0114233,87568.0,87567.0,0.7053634]
[1765979712115,0.0114233,87568.0,87567.0,0.69394]
[1765979712913,0.10199503,87568.0,87567.0,0.69394]
[1765979713114,0.0114233,87568.0,87567.0,0.69394]
[1765979715216,0.1923233,87568.0,87567.0,0.69394]
[1765979715531,0.1923238,87564.0,87563.0,0.3608]
[1765979715917,0.1923238,87564.0,87563.0,0.70962]
[1765979716331,0.1923238,87564.0,87563.0,1.05474]
[1765979717231,0.1809,87562.0,87561.0,0.20408]
[1765979717418,0.0114238,87564.0,87559.0,0.00017137]
[1765979717419,0.1809,87560.0,87559.0,0.00017137]
[1765979724030,0.9017,87560.0,87559.0,0.00017137]
[1765979725032,0.9837925,87560.0,87559.0,0.00017137]
[1765979727532,1.2625,87560.0,87559.0,0.00017137]
[1765979727729,0.1923253,87553.0,87538.0,0.00228474]
[1765979728033,0.1923271,87539.0,87538.0,4e-08]
[1765979728239,0.1923271,87539.0,87520.0,0.56488]
[1765979728240,0.1923284,87529.0,87520.0,0.56488]
[1765979728538,0.1923284,87529.0,87528.0,0.89802]
[1765979730131,0.00017137,87537.0,87536.0,0.89802]
[1765979730434,0.0114261,87547.0,87546.0,0.69394]
[1765979731943,0.1636161,87547.0,87546.0,0.69394]
[1765979732338,0.1666161,87547.0,87546.0,0.69394]
[1765979732740,0.25805794,87547.0,87546.0,0.69394]
[1765979732929,0.41024794,87547.0,87546.0,0.69394]
[1765979733130,0.41024794,87547.0,87546.0,0.34882]
[1765979733439,0.41024794,87547.0,87544.0,0.5529]
[1765979733440,0.30438,87545.0,87544.0,0.5529]
[1765979733837,0.30438,87545.0,87544.0,0.89802]
[1765979735336,0.30538,87545.0,87544.0,0.89802]
[1765979735640,0.004,87545.0,87544.0,1.25882]
[1765979740228,0.0154263,87545.0,87544.0,1.2702464]
[1765979740637,0.004,87545.0,87544.0,1.2702464]
[1765979741039,0.36097137,87555.0,87554.0,0.69629]
[1765979742142,0.36197137,87555.0,87554.0,0.69629]
[1765979742348,0.37339637,87555.0,87554.0,0.69629]
[1765979742644,1.37e-06,87555.0,87554.0,0.69629]
[1765979742945,0.3722236,87566.0,87565.0,0.69629]
[1765979743440,0.3608,87566.0,87565.0,0.69629]
[1765979743647,0.0114231,87570.0,87569.0,0.7077132]
[1765979743944,0.08211304,87583.0,87569.0,0.7077132]
[1765979743945,0.08211304,87591.0,87589.0,0.3516806]
[1765979744241,0.0114187,87603.0,87602.0,0.69629]
[1765979744435,0.3431887,87603.0,87602.0,1.05709]
[1765979745142,0.3431887,87603.0,87602.0,1.0685089]
[1765979745335,0.09315698,87603.0,87602.0,0.3722189]
[1765979745536,0.09315698,87603.0,87602.0,1.0685089]
[1765979745735,0.0114181,87609.0,87608.0,0.69629]
[1765979749249,0.10161876,87609.0,87608.0,0.69629]
[1765979749433,0.0114181,87609.0,87608.0,0.69629]
[1765979749842,0.3431881,87609.0,87608.0,0.69629]
[1765979751539,0.6845581,87609.0,87608.0,0.69629]
[1765979751733,0.7773251,87609.0,87608.0,0.69629]
[1765979751947,0.67314,87608.0,87607.0,0.3608]
[1765979754650,0.67314,87608.0,87607.0,0.71683]
[1765979755347,0.67314,87608.0,87607.0,1.05709]
[1765979756350,0.67314,87608.0,87607.0,0.3608]
[1765979757240,0.67314,87608.0,87607.0,0.71683]
[1765979757552,0.67314,87608.0,87607.0,1.05709]
[1765979757746,0.33177,87608.0,87607.0,1.05709]
[1765979757946,0.104185,87609.0,87608.0,0.9167581]
[1765979758141,0.104185,87609.0,87608.0,0.90534]
[1765979758542,0.092767,87609.0,87608.0,0.90534]
[1765979758850,0.00017127,87611.0,87610.0,0.69629]
[1765979760341,0.33194127,87611.0,87610.0,0.69629]
[1765979760650,0.2002,87614.0,87613.0,0.69629]
[1765979760838,0.15175767,87630.0,87617.0,0.7077069]
[1765979760839,0.0114164,87622.0,87617.0,0.7077069]
[1765979761039,0.15175767,87630.0,87617.0,1.0685069]
[1765979761241,0.2002,87638.0,87626.0,0.69629]
[1765979761242,0.02799074,87627.0,87626.0,0.69629]
[1765979761447,0.0114155,87628.0,87627.0,0.69629]
[1765979763548,0.09246159,87630.0,87629.0,0.69629]
[1765979763745,0.33188355,87636.0,87635.0,0.69629]
[1765979763945,0.34329795,87636.0,87635.0,1.05709]
[1765979764659,0.01152795,87636.0,87635.0,1.05709]
[1765979764955,0.67155795,87636.0,87635.0,1.05709]
[1765979765355,0.67155795,87636.0,87635.0,0.69629]
[1765979765554,0.76130157,87636.0,87635.0,0.69629]
[1765979766654,0.00011355,87636.0,87635.0,0.69629]
[1765979767154,0.0114126,87651.0,87650.0,0.66519]
[1765979767361,0.83262802,87660.0,87659.0,0.66519]
[1765979767658,0.75203135,87660.0,87659.0,0.66519]
[1765979767859,0.7116025,87651.0,87650.0,1.02599]
[1765979768061,0.7116025,87651.0,87650.0,0.32696]
[1765979768260,0.70019,87649.0,87648.0,0.19502]
[1765979768452,0.70019,87649.0,87648.0,0.86021]
[1765979768652,0.0114125,87651.0,87650.0,0.66519]
[1765979769158,0.3706825,87651.0,87650.0,0.66519]
[1765979769352,0.0114125,87651.0,87650.0,0.66519]
[1765979769547,0.7152925,87651.0,87650.0,0.66519]
[1765979770053,0.0114125,87651.0,87650.0,0.66519]
[1765979770248,0.7058325,87651.0,87650.0,0.66519]
[1765979770757,0.0933707,87655.0,87654.0,0.69016]
[1765979770964,0.011412,87655.0,87654.0,0.69016]
[1765979771347,0.0114116,87658.0,87653.0,0.3608]
[1765979771555,0.0114121,87655.0,87654.0,0.69016]
[1765979773252,0.0922474,87660.0,87659.0,0.69016]
[1765979773466,0.21178431,87663.0,87662.0,0.69016]
[1765979773762,0.22319521,87663.0,87662.0,1.05096]
[1765979773960,0.91761521,87663.0,87662.0,0.69016]
[1765979774354,0.9060309,87663.0,87662.0,0.69016]
[1765979775461,0.65389332,87663.0,87662.0,0.69016]
[1765979776068,0.2116109,87663.0,87662.0,0.69016]
[1765979776362,0.0114109,87663.0,87662.0,0.69016]
[1765979776665,0.7058309,87663.0,87662.0,0.69016]
[1765979777558,0.7058327,87649.0,87648.0,0.88518]
[1765979777754,0.7058333,87645.0,87644.0,1.05096]
[1765979778357,0.7058333,87645.0,87644.0,0.3608]
[1765979778555,0.7058333,87645.0,87640.0,0.00017117]
[1765979778556,0.7058338,87641.0,87640.0,0.00017117]
[1765979778761,0.79633009,87641.0,87640.0,0.00017117]
[1765979779167,0.79633009,87641.0,87640.0,0.69033117]
[1765979779566,0.0114138,87641.0,87640.0,1.05113117]
[1765979779770,0.7058338,87641.0,87640.0,1.05113117]
[1765979780966,0.3612238,87641.0,87640.0,1.05113117]
[1765979781372,0.7058338,87641.0,87640.0,1.05113117]
[1765979781669,0.7058338,87641.0,87640.0,0.69033117]
[1765979782075,0.79798261,87641.0,87640.0,0.69033117]
[1765979782476,0.79798261,87641.0,87640.0,0.34705117]
[1765979782868,0.79798261,87641.0,87640.0,0.00017117]
[1765979783376,0.0114138,87641.0,87640.0,0.69033117]
[1765979783563,0.0114115,87659.0,87640.0,0.69033117]
[1765979783564,0.87021271,87660.0,87659.0,0.69016]
[1765979783872,0.45253754,87668.0,87667.0,0.69016]
[1765979784063,1.0807003,87668.0,87667.0,0.69016]
[1765979784268,1.0807003,87668.0,87660.0,0.88621]
[1765979784269,0.7058312,87661.0,87660.0,0.88621]
[1765979785483,0.69442,87660.0,87659.0,0.34705117]
[1765979785684,0.69442,87660.0,87659.0,0.69033117]
[1765979787093,0.69442,87660.0,87659.0,0.00017117]
[1765979787293,0.81214,87660.0,87659.0,0.00017117]
[1765979787992,0.69442,87651.0,87642.0,0.19605]
[1765979788188,1.41382,87651.0,87650.0,0.70768]
[1765979788389,1.4252325,87651.0,87650.0,1.05096]
[1765979789089,1.5429525,87651.0,87650.0,0.3608]
[1765979789685,1.4252325,87651.0,87650.0,0.002]
[1765979789884,1.7860325,87651.0,87650.0,0.002]
[1765979790086,1.7860325,87651.0,87650.0,0.69216]
[1765979790292,1.7859925,87651.0,87650.0,0.69216]
[1765979790985,0.0114125,87651.0,87650.0,0.69216]
[1765979791198,0.7307725,87651.0,87650.0,0.69216]
[1765979792285,0.7307725,87651.0,87650.0,0.69016]
[1765979793192,1.0805825,87651.0,87650.0,0.69016]
[1765979795694,1.06917,87651.0,87650.0,0.69016]
[1765979795897,0.0284198,87659.0,87658.0,0.68249]
[1765979795898,0.01158257,87659.0,87658.0,0.68249]
[1765979796196,0.68436257,87659.0,87658.0,1.04329]
[1765979798398,0.68436257,87659.0,87658.0,0.3608]
[1765979798600,0.68436257,87659.0,87658.0,1.04329]
[1765979801506,0.01158257,87659.0,87658.0,1.04329]
[1765979802103,0.00017117,87659.0,87658.0,1.04329]
[1765979802300,0.71937117,87659.0,87658.0,1.04329]
[1765979802496,0.0114099,87671.0,87658.0,1.04329]
[1765979802497,0.08197066,87686.0,87678.0,0.693899]
[1765979802694,0.0114069,87694.0,87693.0,0.68249]
[1765979802901,0.00228057,87698.0,87697.0,0.68249]
[1765979803098,0.00228057,87698.0,87697.0,1.04329]
[1765979803901,0.10321454,87707.0,87706.0,0.6938953]
[1765979804094,0.7306048,87710.0,87709.0,0.68249]
[1765979804294,0.6841852,87707.0,87706.0,0.3608]
[1765979805305,0.6841864,87698.0,87697.0,0.3608]
[1765979805605,0.6841864,87698.0,87697.0,1.04329]
[1765979806002,0.0114064,87698.0,87697.0,1.04329]
[1765979806209,0.3384952,87707.0,87706.0,0.68249]
[1765979806507,0.6841852,87707.0,87706.0,0.68249]
[1765979808302,0.6841852,87707.0,87705.0,0.3608]
[1765979808506,0.6841864,87698.0,87697.0,1.04329]
[1765979808902,0.3384974,87690.0,87689.0,0.68266107]
[1765979809498,0.011407,87693.0,87689.0,0.68266107]
[1765979809705,0.011407,87693.0,87692.0,0.68249]
[1765979810401,0.338497,87693.0,87692.0,0.68249]
[1765979811503,0.6841853,87706.0,87705.0,0.68249]
[1765979811705,0.3384953,87706.0,87705.0,0.68249]
[1765979811909,0.6841853,87706.0,87705.0,0.88465]
[1765979812304,0.6841853,87706.0,87705.0,0.68249]
[1765979812803,0.684186,87701.0,87700.0,0.32526]
[1765979813205,0.684186,87701.0,87700.0,0.68249]
[1765979814305,0.011406,87701.0,87700.0,0.68249]
[1765979814611,0.32709,87701.0,87700.0,0.6938961]
[1765979815311,0.0114055,87705.0,87704.0,0.68249]
[1765979815512,0.0114055,87705.0,87704.0,1.04329]
[1765979816702,0.0114051,87708.0,87705.0,0.20216]
[1765979816907,0.3384951,87708.0,87707.0,0.68249]
[1765979817413,0.6841851,87708.0,87707.0,0.68249]
[1765979819211,0.67278,87697.0,87696.0,0.88465]
[1765979820212,0.6841865,87697.0,87696.0,0.88465]
[1765979820611,0.67278,87697.0,87696.0,0.88465]
[1765979820912,0.6841853,87706.0,87705.0,0.88465]
[1765979821310,0.32709,87706.0,87705.0,0.88465]
[1765979822213,0.10248684,87710.0,87709.0,0.68249]
[1765979822416,0.09108194,87710.0,87709.0,0.68249]
[1765979822615,0.6056446,87712.0,87711.0,0.68249]
[1765979822911,0.9327346,87712.0,87711.0,1.04329]
[1765979823210,1.2784246,87712.0,87711.0,0.68606]
[1765979823719,0.684187,87693.0,87692.0,0.68249]
[1765979825110,0.6819774,87690.0,87689.0,0.35645107]
[1765979825312,1.0427774,87690.0,87689.0,0.70303107]
[1765979826616,0.83316806,87699.0,87698.0,0.70286]
[1765979826814,0.0114062,87699.0,87698.0,0.70286]
[1765979827814,0.0114059,87702.0,87701.0,0.70286]
[1765979828015,0.3486259,87702.0,87701.0,0.70286]
[1765979828415,0.6819759,87702.0,87696.0,0.20461]
[1765979828618,0.66182,87690.0,87689.0,0.68230107]
[1765979828817,0.0114073,87692.0,87691.0,0.68213]
[1765979829008,0.3608,87700.0,87699.0,0.6935362]
[1765979829212,0.3608,87700.0,87699.0,0.68213]
[1765979830506,1.02262,87700.0,87699.0,0.68213]
[1765979830812,0.3608,87700.0,87699.0,0.68213]
[1765979831015,0.09118932,87712.0,87699.0,0.68213]
[1765979831016,0.0114032,87723.0,87722.0,0.68213]
[1765979831214,0.6732232,87723.0,87722.0,0.68213]
[1765979831414,0.66182,87723.0,87722.0,1.04293]
[1765979831616,0.06117539,87733.0,87732.0,0.88038]
[1765979831814,0.07259381,87737.0,87736.0,0.68213]
[1765979832011,0.0114013,87737.0,87736.0,0.68213]
[1765979832913,0.3384113,87737.0,87736.0,0.68213]
[1765979833515,0.0114013,87737.0,87736.0,0.68213]
[1765979834323,0.00227953,87738.0,87737.0,0.68213]
[1765979836415,0.00227953,87738.0,87730.0,0.68691]
[1765979836416,0.6732221,87731.0,87730.0,0.68691]
[1765979836613,0.6732221,87731.0,87730.0,0.32611]
[1765979836813,0.6732221,87731.0,87730.0,1.04293]
[1765979837209,0.011404,87717.0,87716.0,0.68213]
[1765979837407,0.6732235,87720.0,87719.0,0.68213]
[1765979837605,0.66182,87720.0,87719.0,0.68213]
[1765979837812,0.32701,87720.0,87719.0,0.68213]
[1765979838012,0.3384132,87723.0,87722.0,0.68213]
[1765979838209,0.81301186,87730.0,87729.0,0.6935323]
[1765979838427,1.0568117,87734.0,87733.0,0.68213]
[1765979838722,0.7184,87734.0,87733.0,0.6935318]
[1765979840024,1.04541,87734.0,87733.0,0.68213]
[1765979843125,0.6732231,87723.0,87722.0,1.04293]
[1765979844618,0.8847031,87723.0,87722.0,0.3608]
[1765979846232,0.6732242,87715.0,87714.0,0.00017107]
[1765979846419,0.6732258,87702.0,87701.0,0.3608]
[1765979846727,0.6732258,87702.0,87671.0,0.3608]
[1765979846728,0.66182,87678.0,87671.0,0.3608]
[1765979846926,1.38002,87678.0,87677.0,0.04067413]
[1765979847127,0.3608,87679.0,87678.0,0.68213]
[1765979847329,1.07896,87679.0,87678.0,0.68213]
[1765979848327,0.0114086,87682.0,87681.0,0.88038]
[1765979848520,0.7296086,87682.0,87681.0,0.88038]
[1765979848920,1.0904086,87682.0,87681.0,0.88038]
[1765979849926,0.673229,87678.0,87677.0,0.04067413]
[1765979850230,0.66182,87678.0,87677.0,0.72280413]
[1765979850426,0.66182,87678.0,87677.0,0.73421323]
[1765979850629,1.08,87682.0,87681.0,0.88038]
[1765979851126,0.3618,87682.0,87681.0,0.88038]
[1765979851328,0.001,87682.0,87681.0,0.88038]
[1765979851730,0.38721077,87687.0,87686.0,0.6935379]
[1765979853940,0.38721077,87687.0,87686.0,0.6945379]
[1765979854332,0.38721077,87687.0,87686.0,0.6935379]
[1765979854632,0.38721077,87687.0,87681.0,0.87249]
[1765979854633,0.66309,87682.0,87681.0,0.87249]
[1765979854827,0.6744984,87682.0,87681.0,0.87249]
[1765979855030,0.6744984,87682.0,87681.0,0.32738]
[1765979855230,0.674499,87678.0,87677.0,0.04067413]
[1765979855430,1.035299,87678.0,87677.0,0.04067413]
[1765979855638,1.035299,87678.0,87677.0,0.36805413]
[1765979855830,1.035299,87678.0,87677.0,0.04067413]
[1765979858138,1.036299,87678.0,87677.0,0.04067413]
[1765979864438,1.754699,87678.0,87677.0,0.04067413]